Workbook

Sheet Příkaz
K1: Příloha OD č. 1/2022 Evidenční číslo: | Z1: =IFERROR("Vyúčtování pracovní cesty a zprávu o pracovní cestě je nutné odevzdat nejpozději do " &TEXT(List1!$AC$1,"dd.mm.rrrr")&".","") -> 
B2: CESTOVNÍ PŘÍKAZ K USKUTEČNĚNÍ ZAHRANIČNÍ PRACOVNÍ CESTY
B5: Jméno a příjmení: | K5: Pracoviště:
B7: Zahájení cesty | D7: Datum: | H7: Místo: | AC7: =D18&D26&D28&D30 -> 
B9: Místo konání: | X9: Stát, místo, pořadatel | AC9: PF UKPF UKPF UKPF UK
B11: Název akce/Účel:
B13: Očekávaný přínos/výstup:
B15: Ukončení cesty | D15: Datum: | H15: Místo:
B18: Jízdné hradí: | F18: upřesněte zdroj, v případě PF UK uveďte číslo střediska
B20: Návrh na určení dopravního prostředku: | G20: V | I20: =IF(G20<>"",(VLOOKUP(G20,List1!B3:C11,2,FALSE)),"") -> Vlak | N20: =IF(G20="V","Jízdenku zařizuje:",IF(G20="A","Jízdenku zařizuje:",IF(G20="L","Letenku zařizuje:",""))) -> Jízdenku zařizuje: | X20: Standardně si zaměstnanec zajišťuje letenky/jízdenky sám.
B22: Předpokládaná výše jízdních výdajů za jehož použití mají být poskytnuty náhrady jízdních výdajů: | R22: 0
B24: Úhrada ostatních výdajů (PF UK, grant nebo jiný zdroj) | K24: Předpokládáná výše ostatních výdajů v Kč
B26: Ubytování hradí: | F26: upřesněte zdroj, v případě PF UK uveďte číslo střediska | R26: 0 | X26: (PF UK, grant nebo projekt) | Z26: částka v Kč
Z27: částka v Kč
B28: Stravné hradí: | F28: upřesněte zdroj, v případě PF UK uveďte číslo střediska | R28: 0 | X28: (PF UK, grant nebo projekt) | Z28: částka v Kč
Z29: částka v Kč
B30: Nutné vedl. výd. hradí: | F30: upřesněte zdroj, v případě PF UK uveďte číslo střediska | R30: 0 | X30: (PF UK, grant nebo projekt) | Z30: částka v Kč
B32: Nutné vedlejší výdaje specifikace: | X32: Specifikace
B34: ="Cestovní pojištění ("&List1!R2&"), zajištuje a hradí:" -> Cestovní pojištění (1 den), zajištuje a hradí: | K34: Předpokládáné výdaje celkem | R34: =IF(OR(G20="SV",G20="SJ"),R26+R28+R30,R22+R26+R28+R30) -> 0
B37: Žádám o zálohu: | D37: Ne | G37: Výše zálohy: | J37: 0 | M37: USD | X37: =IF(D37<>"",IF(J37<>"",(IF(M37="CZK",1,VLOOKUP(TODAY(),'Kurzy CNB'!$A$1:$AJ$315,VLOOKUP(M37,List1!$S$4:$T$36,2,FALSE),TRUE)))*J37,""),"") -> 0 | Z37: Výše v Kč podle naposledy aktualizovaného kurzu
D38: =IF(AND(D37="Ano, na bank. Účet",M37<>"CZK"),"vedený v měně "&M37,"") ->  | O38: =IF(D37="Ano, na bank. účet",IF(M37="CZK","Číslo bankovního účtu",IF(M37="EUR","IBAN","IBAN+vyplňte form. zahr. platby")),"datum vyplacení") -> datum vyplacení
B39: Pracovní cesta bude přerušena: | F39: Ne | G39: Od: | M39: Do:
H40: datum | K40: čas | O40: datum | R40: čas
B42: POUŽITÍ SOUKROMÉHO VOZIDLA NA PRACOVNÍ CESTU
B43: Vyplní řidič vozidla (zaměstnanec) před cestou.
B45: Vlastník vozidla:
B47: Řidič vozidla: | F47: =IF(D5="","",D5) -> 
B49: RZ vozidla: | J49: Typ vozu:
B51: Datum povinn. proškolení řidiče: | J51: Číslo havarijní pojistky:
B53: Spolucestující:
B55: Prohlašuji, že vozidlo použité na této služební cestě | H55: NENÍ | J55: v evidenci plátců silniční daně pro rok 2023.
B56: Prohlašuji, že mám platný řidičský průkaz.
B57: Přílohy: | C57: - kopie velkého technického průkazu (datum aktuální technické kontroly) - kopie dokladu o sjednání havarijního pojištění (pokud jste už neodevzdali na ekonomickém oddělení)
C59: =IF(OR(G20="V",G20="A - VV",G20="V - VV",G20="L - VV",G20="A - VV",G20="A",G20="L",)," - doklad o předpokládané výši jízdních výdajů za dopravní prostředek, za jehož použití mají být poskytnuty náhrady jízdních výdajů","") -> - doklad o předpokládané výši jízdních výdajů za dopravní prostředek, za jehož použití mají být poskytnuty náhrady jízdních výdajů
B60: =IFERROR("Prohlašuji, že podám vyúčtování pracovní cesty a zprávu pracovní cestě nejpozději do " &TEXT(List1!AC1,"dd.mm.rrrr")&".","") -> 
B61: ="Žádám o náhradu jízdních výdajů "&IF(G20="VV","za každý kilometr jízdy sazbou základní náhrady a náhradou za spotřebované pohonné hmoty podle zákonných sazeb platných v době konání pracovní cesty.",IF(OR(G20="V - VV",G20="V"),"ve výši odpovídající ceně jízdenky za vlak do výše " & R22 &" Kč.",IF(OR(G20="A - VV",G20="A"),"ve výši odpovídající ceně jízdenky za autobus do výše " &R22&" Kč.",IF(OR(G20="L - VV",G20="L"),"ve výši odpovídající ceně letenky do výše " &R22&" Kč.","- NE.")))) -> Žádám o náhradu jízdních výdajů ve výši odpovídající ceně jízdenky za vlak do výše 0 Kč.
B64: V Praze dne | J64: Podpis zaměstnance
B74: Poznámka schvalujících
B76: Podpis řešitele grantu nebo projektu | K76: Podpis přímého nadřízeného
B80: Podpis vedoucího zahraničního oddělení | K80: Podpis tajemníka (správce rozpočtu)
B84: Podpis vedoucí ekonomického oddělení | K84: Podpis proděkanky pro zahraniční vztahy

Sheet Vyúčtování test (hidden)
B2: VYÚČTOVÁNÍ PRACOVNÍ CESTY
B3: Datum | D3: Odjezd - příjezd | G3: Použitý dopr. prostředek2) | H3: Vzdálenost v km 1) | I3: Jízdné v případě AUV | J3: Jízdné a místní přeprava | K3: Stravné | L3: Noc- ležné | M3: Nutné vedlejší výdaje | N3: Celkem | R3: Upraveno
F4: v hod. | J4: Kč | K4: Kč | L4: Kč | M4: Kč | N4: Kč | R4: Kč | Y4: Vozidlo
B5: 2020-01-02 | C5: Odjezd | F5: 10:00:00 | I5: =IF(G5="VV",ROUND(H5*$Z$14+H5*$Z$18,2),"") ->  | K5: =R26 -> 691 | N5: =(N(I5)+J5+L5+M5) -> 0 | Q5: =VLOOKUP(P27,$AC$12:$AG$16,Q27+1,FALSE) -> 91 | T5: =IF(B5="","",IF(B7="","konec","průběh")) -> průběh | U5: =VLOOKUP(IF(B5="",0,(IF(B5=B3,1000,100)+IF(B5=B7,10,1))),List1!$B$22:$D$26,3,FALSE) -> 4 | V5: =B5 -> 2020-01-02 | W5: =IF(V5<>0,B5+F5,"") -> 2020-01-02T10:00:00 | Y5: SPZ
C6: Příjezd | F6: 12:00:00 | V6: =B5 -> 2020-01-02 | W6: =IF(V5<>0,B5+F6,"") -> 2020-01-02T12:00:00 | Y6: Palivo | Z6: nafta | AD6: =AD8 -> 43832
B7: 2020-01-05 | C7: Odjezd | F7: 15:00:00 | I7: =IF(G7="VV",ROUND(H7*$Z$14+H7*$Z$18,2),"") ->  | N7: =(N(I7)+J7+L7+M7) -> 0 | Q7: =VLOOKUP(P28,$AC$12:$AG$16,Q28+1,FALSE) -> 200 | T7: =IF(B7="","",IF(B9="","konec","průběh")) -> konec | U7: =VLOOKUP(IF(B7="",0,(IF(B7=B5,1000,100)+IF(B7=B9,10,1))),List1!$B$22:$D$26,3,FALSE) -> 4 | V7: =B7 -> 2020-01-05 | W7: =IF(V7<>0,B7+F7,"") -> 2020-01-05T15:00:00 | Y7: spotřeba 1 | Z7: 3.1
C8: Příjezd | F8: 20:00:00 | V8: =B7 -> 2020-01-05 | W8: =IF(V7<>0,B7+F8,"") -> 2020-01-05T20:00:00 | Y8: spotřeba 2 | AD8: =MIN(B5:B20) -> 2020-01-02 | AE8: =MIN(W5:W20) -> 2020-01-02T10:00:00
C9: Odjezd | I9: =IF(G9="VV",ROUND(H9*$Z$14+H9*$Z$18,2),"") ->  | N9: =(N(I9)+J9+L9+M9) -> 0 | T9: =IF(B9="","",IF(B11="","konec","průběh")) ->  | U9: =VLOOKUP(IF(B9="",0,(IF(B9=B7,1000,100)+IF(B9=B11,10,1))),List1!$B$22:$D$26,3,FALSE) -> 5 | V9: =B9 -> 00:00:00 | W9: =IF(V9<>0,B9+F9,"") ->  | Y9: spotřeba 3 | AD9: =MAX(B5:B20) -> 2020-01-05 | AE9: =MAX(W5:W20) -> 2020-01-05T20:00:00
C10: Příjezd | V10: =B9 -> 00:00:00 | W10: =IF(V9<>0,B9+F10,"") ->  | Y10: spotřeba 4
C11: Odjezd | I11: =IF(G11="VV",ROUND(H11*$Z$14+H11*$Z$18,2),"") ->  | N11: =(N(I11)+J11+L11+M11) -> 0 | T11: =IF(B11="","",IF(B13="","konec","průběh")) ->  | U11: =VLOOKUP(IF(B11="",0,(IF(B11=B9,1000,100)+IF(B11=B13,10,1))),List1!$B$22:$D$26,3,FALSE) -> 5 | V11: =B11 -> 00:00:00 | W11: =IF(V11<>0,B11+F11,"") ->  | Y11: Průměr - použitá spotřeba | Z11: =ROUND(AVERAGE(Z7:Z10),2) -> 3.1 | AD11: 0 - 5 hod | AE11: 5 až 12 hod. | AF11: 12 až 18 hod. | AG11: více než 18 hod.
C12: Příjezd | V12: =B11 -> 00:00:00 | W12: =IF(V11<>0,B11+F12,"") ->  | Y12: Cena paliva z dokladu | AA12: Pokud nezadáte cenu paliva z dokladu, bude použita cena z vyhlášky | AC12: počet jídel | AD12: 0 | AE12: I | AF12: II | AG12: III
C13: Odjezd | I13: =IF(G13="VV",ROUND(H13*$Z$14+H13*$Z$18,2),"") ->  | N13: =(N(I13)+J13+L13+M13) -> 0 | T13: =IF(B13="","",IF(B15="","konec","průběh")) ->  | U13: =VLOOKUP(IF(B13="",0,(IF(B13=B11,1000,100)+IF(B13=B15,10,1))),List1!$B$22:$D$26,3,FALSE) -> 5 | V13: =B13 -> 00:00:00 | W13: =IF(V13<>0,B13+F13,"") ->  | Y13: Náhrady | AC13: 0 | AD13: 0 | AE13: 90 | AF13: 140 | AG13: 200
C14: Příjezd | V14: =B13 -> 00:00:00 | W14: =IF(V13<>0,B13+F14,"") ->  | Y14: amortizace za km | Z14: 4.1 | AC14: 1 | AD14: 0 | AE14: =AE13*0.3 -> 27 | AF14: =0.65*AF13 -> 91 | AG14: =0.75*AG13 -> 150
C15: Odjezd | I15: =IF(G15="VV",ROUND(H15*$Z$14+H15*$Z$18,2),"") ->  | N15: =(N(I15)+J15+L15+M15) -> 0 | T15: =IF(B15="","",IF(B17="","konec","průběh")) ->  | U15: =VLOOKUP(IF(B15="",0,(IF(B15=B13,1000,100)+IF(B15=B17,10,1))),List1!$B$22:$D$26,3,FALSE) -> 5 | V15: =B15 -> 00:00:00 | W15: =IF(V15<>0,B15+F15,"") ->  | Y15: benzin 95 oktanů | Z15: 33.1 | AC15: 2 | AD15: 0 | AE15: 0 | AF15: =0.3*AF13 -> 42 | AG15: =0.5*AG13 -> 100
C16: Příjezd | V16: =B15 -> 00:00:00 | W16: =IF(V15<>0,B15+F16,"") ->  | Y16: benzin 98 oktanů | Z16: 37.1 | AC16: 3 | AD16: 0 | AE16: 0 | AF16: 0 | AG16: =0.25*AG13 -> 50
C17: Odjezd | I17: =IF(G17="VV",ROUND(H17*$Z$14+H17*$Z$18,2),"") ->  | N17: 0 | T17: =IF(B17="","",IF(B19="","konec","průběh")) ->  | U17: =VLOOKUP(IF(B17="",0,(IF(B17=B15,1000,100)+IF(B17=B19,10,1))),List1!$B$22:$D$26,3,FALSE) -> 5 | V17: =B17 -> 00:00:00 | W17: =IF(V17<>0,B17+F17,"") ->  | Y17: nafta | Z17: 33.6
C18: Příjezd | V18: =B17 -> 00:00:00 | W18: =IF(V17<>0,B17+F18,"") ->  | Y18: náhrada za km paliva | Z18: =ROUND(IF(Z12=0,(VLOOKUP(Z6,Y15:Z17,2,FALSE)),Z12)*Z11/100,4) -> 1.0416 | AA18: =IF(Z12<>"","použita cena z dokladu","použita cena z vyhlášky") -> použita cena z vyhlášky
C19: Odjezd | I19: =IF(G19="VV",ROUND(H19*$Z$14+H19*$Z$18,2),"") ->  | N19: 0 | T19: =IF(B19="","",IF(B21="","konec","průběh")) ->  | U19: =VLOOKUP(IF(B19="",0,(IF(B19=B17,1000,100)+IF(B19=B21,10,1))),List1!$B$22:$D$26,3,FALSE) -> 5 | V19: =B19 -> 00:00:00 | W19: =IF(V19<>0,B19+F19,"") -> 
C20: Příjezd | V20: =B19 -> 00:00:00 | W20: =IF(V19<>0,B19+F20,"") -> 
H21: Celkem | I21: =SUM(I5:I20) -> 0 | J21: =SUM(J5:J20) -> 0 | K21: =SUM(K5:K20) -> 691 | L21: =IF(E23="ano",0,SUM(L5:L20)) -> 0 | M21: =SUM(M5:M20) -> 0 | N21: =SUM(I21:M21) -> 691
B22: Strava poskytnuta bezplatně | E22: ano | H22: Záloha
B23: Ubytování poskytnuto bezplatně:* | E23: ano | H23: =IF((N21-N22)<0,"Přeplatek (účtovatel vrátí)", "Doplatek (účtovateli bude doplaceno)") -> Doplatek (účtovateli bude doplaceno) | N23: =ABS(CEILING(N21-N22,1)) -> 691
P24: =IF(O28="",1,IF((O27+O28)<=5/24,1,IF((O27+O28)<=12/24,2,IF((O27+O28)<=18/24,3,4)))) -> 4 | Q24: =VLOOKUP((IF((P28+P27)>3,3,(P28+P27))),$AC$12:$AG$16,P24+1,FALSE) -> 150
B25: V - Vlak | C25: SV - služební vozidlo | E25: V - VV - vlastní vozidlo s náhradou výdajů za vlak | K25: Bezplatně poskytnutá strava | P25: počet jídel | Q25: skupina | R25: Celkem | Y25: Přehled EU norem používaných v TP
B26: A - autobus | C26: CV - spolujízda | E26: A - VV - vlastní vozidlo s náhradou výdajů za autobus | K26: Datum | L26: snídaně | M26: oběd | N26: večeře | O26: doba | R26: =SUM(R27:R43) -> 691 | Y26: 80/1268/EHS | Z26: arit.průměr | AA26: 3 údaje v TP
B27: L - letadlo | C27: VV - vlastní vozidlo | E27: L - VV - vlastní vozidlo s náhradou výdajů za letadlo | K27: =IF(AD8<>0,AD8,"") -> 2020-01-02 | L27: ano | O27: =IF(K27<>"",IF(K28<>0,K27+1-AE8,AE9-AE8),"") -> 0.5833333333 | P27: =IF($E$22="ne",0,IF(LEFT(L27,1)="A",1,0)+IF(LEFT(M27,1)="A",1,0)+IF(LEFT(N27,1)="A",1,0)) -> 1 | Q27: =IF(OR(O27<=5/24+1/24/60/60/100,O27=""),1,IF(O27<=12/24,2,IF(O27<=18/24,3,4))) -> 3 | R27: =IF(AND(K29="",(Q7+Q5)<Q24),0,Q5) -> 91 | Y27: 93/116/ES | Z27: třetí údaj
K28: =IF(($AD$8+List1!A2)<=$AD$9,$AD$8+List1!A2,"") -> 2020-01-03 | O28: =IF(K28<>"",IF(K29<>"",1,$AE$9-K28),"") -> 1 | P28: 0 | Q28: =IF(OR(O28<=5/24+1/24/60/60/100,O28=""),1,IF(O28<=12/24,2,IF(O28<=18/24,3,4))) -> 4 | R28: =IF(AND(K29="",(Q7+Q5)<Q24),Q24,Q7) -> 200 | Y28: 1999/100/ES | Z28: třetí údaj
K29: =IF(($AD$8+List1!A3)<=$AD$9,$AD$8+List1!A3,"") -> 2020-01-04 | O29: 1 | P29: 0 | Q29: 4 | R29: =VLOOKUP(P29,$AC$12:$AG$16,Q29+1,FALSE) -> 200 | Y29: 2004/3/ES | Z29: třetí údaj
B30: Zdroj financování (PF UK, grant, jiný zdroj): | F30: Zpráva o výsledku pracovní cesty byla podána dne: | K30: =IF(($AD$8+List1!A4)<=$AD$9,$AD$8+List1!A4,"") -> 2020-01-05 | O30: 0.8333333333 | P30: 0 | Q30: 4 | R30: 200 | Y30: EU 692/2008 | Z30: třetí údaj
K31: =IF(($AD$8+List1!A5)<=$AD$9,$AD$8+List1!A5,"") ->  | P31: 0 | Q31: 1 | R31: 0 | Y31: EU 692/2008A,…F | Z31: třetí údaj
K32: =IF(($AD$8+List1!A6)<=$AD$9,$AD$8+List1!A6,"") ->  | P32: 0 | Q32: 1 | R32: 0 | Y32: EU/566/2011 | Z32: třetí údaj
K33: =IF(($AD$8+List1!A7)<=$AD$9,$AD$8+List1!A7,"") ->  | P33: 0 | Q33: 1 | R33: 0 | Y33: 2007/46/ES | Z33: třetí údaj
B34: Číslo bankovního účtu pro zasílání náhrad účtovateli: | K34: =IF(($AD$8+List1!A8)<=$AD$9,$AD$8+List1!A8,"") ->  | P34: 0 | Q34: 1 | R34: 0 | Y34: EHK 101,R101.00 | Z34: třetí údaj
K35: =IF(($AD$8+List1!A9)<=$AD$9,$AD$8+List1!A9,"") ->  | P35: 0 | Q35: 1 | R35: 0 | Y35: 459/2012/EU | Z35: třetí údaj
K36: =IF(($AD$8+List1!A10)<=$AD$9,$AD$8+List1!A10,"") ->  | P36: 0 | Q36: 1 | R36: 0 | Y36: 630/2012/EU | Z36: třetí údaj
B37: Prohlašuji, že jsem všechny údaje uvedl úplně a správně. | K37: =IF(($AD$8+List1!A11)<=$AD$9,$AD$8+List1!A11,"") ->  | P37: 0 | Q37: 1 | R37: 0 | Y37: EU195/2013 | Z37: třetí údaj
K38: =IF(($AD$8+List1!A12)<=$AD$9,$AD$8+List1!A12,"") ->  | P38: 0 | Q38: 1 | R38: 0 | Y38: 715/2007/ES | Z38: třetí údaj
K39: =IF(($AD$8+List1!A13)<=$AD$9,$AD$8+List1!A13,"") ->  | P39: 0 | Q39: 1 | R39: 0 | Y39: EU136/2014 | Z39: třetí údaj
K40: =IF(($AD$8+List1!A14)<=$AD$9,$AD$8+List1!A14,"") ->  | P40: 0 | Q40: 1 | R40: 0 | Y40: EU2016/646 | Z40: třetí údaj
K41: =IF(($AD$8+List1!A15)<=$AD$9,$AD$8+List1!A15,"") ->  | P41: 0 | Q41: 1 | R41: 0 | Y41: EU2017/1347 | Z41: třetí údaj
B42: Datum a podpis účtovatele | K42: =IF(($AD$8+List1!A16)<=$AD$9,$AD$8+List1!A16,"") ->  | P42: 0 | Q42: 1 | R42: 0 | Y42: EU2015/45 | Z42: třetí údaj
K43: =IF(($AD$8+List1!A17)<=$AD$9,$AD$8+List1!A17,"") ->  | P43: 0 | Q43: 1 | R43: 0 | Y43: jiná norma | Z43: arit.průměr
B47: Se způsobem provedení vyučtování souhlasí:
J50: Podpis přímého nadřízeného nebo řešitele grantu, projektu…
B52: Datum a podpis správce rozpočtu (tajemníka)
B56: Podpis vedoucího ekonom. odd. | J56: Podpis zaměstnance, který kontroloval a upravil vyúčtování (pokladní)

Sheet Vyúčtování
I1: Příloha OD č. 1/2022 | AB1: ="Kurzy ČNB jsou aktualizovány k "&TEXT(AN2,"dd.mm.rrrr") -> Kurzy ČNB jsou aktualizovány k 06.01.2023 | AI1: =60*60*24 -> 86400 | AT1: =IFERROR("Vyúčtování pracovní cesty a zprávu o pracovní cestě je nutné odevzdat nejpozději do " &TEXT(List1!$AC$1,"dd.mm.rrrr")&".","") -> 
B2: VYÚČTOVÁNÍ ZAHRANIČNÍ PRACOVNÍ CESTY | AN2: =(MAX('Kurzy CNB'!$A$2:$A$370)) -> 2023-01-06
B3: Jméno a příjmení | E3: =T(Příkaz!D5) -> 
B4: Název akce/Účel: | E4: =T(Příkaz!D11) ->  | N4: stát | AK4: Vozidlo
B5: Místo konání akce | E5: =T(Příkaz!D9) ->  | AK5: SPZ
E6: datum | F6: čas | G6: místo | N6: základní sazba zahraničního stravného | AK6: Palivo | AL6: benzin 95 oktanů | AP6: =AP8 -> 0
B7: Zahájení cesty | E7: 2023-01-03 | F7: 07:00:00 | S7: =E7+F7 -> 2023-01-03T07:00:00 | AA7: Neposkytnutí náhrady cestovních výdajů dle čl.15 OD 1/2022 v případě, že byla zaměstnanci poskytnuta náhrada v zahraničí nebo z jiného zdroje | AK7: spotřeba 1 | AL7: 4 | AM7: Doplňte kombinovanou spotřebu dle norem EU z TP a ostatní pole ponechte prázdné
B8: Překročení státní hranice/odlet | E8: 2023-01-03 | F8: 07:00:00 | G8: =IF(S8<S7,"překročení hranice nemůže být před začátkem cesty","") ->  | N8: =IFERROR(VLOOKUP(N5,List1!V3:Y180,4,FALSE),"Vyberte") -> Vyberte | O8: =IFERROR(VLOOKUP(N5,List1!V3:Y180,2,FALSE),"stát") -> stát | S8: =E8+F8 -> 2023-01-03T07:00:00 | AK8: spotřeba 2 | AM8: Pokud údaj o kombinované spotřebě v technickém průkazu není, vypočte se spotřeba PHM vozidla aritmetickým průměrem ze všech údajů o spotřebě uvedených v technickém průkazu.
B9: Překročení státní hranice/přílet | E9: 2023-01-04 | F9: 23:00:00 | G9: =IF(OR(E7>MAX('Kurzy CNB'!A2:A370),E16>MAX('Kurzy CNB'!A2:A370)),"Začátek cesty nebo datum zálohy je v období mimo načtené kurzy ČNB","") ->  | N9: použit kurz ze dne | S9: =E9+F9 -> 2023-01-04T23:00:00 | AK9: spotřeba 3
B10: Ukončení cesty | E10: 2023-01-04 | F10: 23:00:00 | N10: =IF(AND(E16<>"",E14<>"NE",OR(F16<>"",F17<>"")),E16,E7) -> 2023-01-03 | S10: =E10+F10 -> 2023-01-04T23:00:00 | AK10: spotřeba 4
B11: Strava poskytnuta bezplatně | E11: Ne | G11: Celková vzdálenost v km při použití VV | K11: Poskytnuté náhrady za výdaje: | AA11: nárok | AB11: náhrada | AC11: k vyúčtování | AK11: Průměr - použitá spotřeba | AL11: =ROUND(AVERAGE(AL7:AL10),2) -> 4 | AP11: 0 - 5 hod | AQ11: 5 až 12 hod. | AR11: 12 až 18 hod. | AS11: více než 18 hod.
B12: Použitý dopr. prostředek | E12: A | H12: =IF(E12="VV",CEILING(G12*$AL$16+G12*$AL$21,0.01),"") ->  | K12: ubytování | M12: EUR | O12: =IF(N12<>"",IF(M12<>"",(IF(M12="CZK",1,VLOOKUP($N$10,'Kurzy CNB'!$A$1:$AJ$315,VLOOKUP(M12,List1!$S$4:$T$36,2,FALSE),TRUE)))*N12/VLOOKUP(M12,List1!$S$3:$U$36,3,FALSE),0),0) -> 0 | AA12: =SUM(I25:I26) -> 0 | AB12: =O12 -> 0 | AC12: =IF((AA12-AB12)<0,0,AA12-AB12) -> 0 | AK12: Cena paliva z dokladu | AL12: 30 | AM12: CZK | AO12: počet jídel | AP12: 0 | AQ12: I | AR12: II | AS12: III
K13: jízdné | M13: EUR | O13: =IF(N13<>"",IF(M13<>"",(IF(M13="CZK",1,VLOOKUP($N$10,'Kurzy CNB'!$A$1:$AJ$315,VLOOKUP(M13,List1!$S$4:$T$36,2,FALSE),TRUE)))*N13/VLOOKUP(M13,List1!$S$3:$U$36,3,FALSE),0),0) -> 0 | AA13: =SUM(I21:I24) -> 0 | AB13: =O13 -> 0 | AC13: =IF((AA13-AB13)<0,0,AA13-AB13) -> 0 | AK13: Cena paliva z dokladu CZK | AL13: =CEILING(IF(AL12<>"",IF(AM12<>"",(IF(AM12="CZK",1,VLOOKUP($N$10,'Kurzy CNB'!$A$1:$AJ$315,VLOOKUP(AM12,List1!$S$4:$T$36,2,FALSE),TRUE)))*AL12/VLOOKUP(AM12,List1!$S$3:$U$36,3,FALSE),0),0),0.0001) -> 30 | AO13: 0 | AP13: 0 | AQ13: 138 | AR13: 205 | AS13: 316
B14: Poskytnuta záloha | E14: Ne | G14: částka | H14: měna | I14: kurz ČNB | K14: ostatní | M14: EUR | O14: =IF(N14<>"",IF(M14<>"",(IF(M14="CZK",1,VLOOKUP($N$10,'Kurzy CNB'!$A$1:$AJ$315,VLOOKUP(M14,List1!$S$4:$T$36,2,FALSE),TRUE)))*N14/VLOOKUP(M14,List1!$S$3:$U$36,3,FALSE),0),0) -> 0 | AA14: =SUM(I27:I28) -> 0 | AB14: 0 | AC14: 0 | AK14: Náhrady | AO14: 1 | AP14: 0 | AQ14: =AQ13*0.3 -> 41.4 | AR14: =0.65*AR13 -> 133.25 | AS14: =0.75*AS13 -> 237
B16: Záloha 1 | D16: vydaná dne | F16: 0 | H16: USD | I16: =IF(OR(E16="",H16="CZK"),1,VLOOKUP(E16,'Kurzy CNB'!$A$1:$AJ$315,VLOOKUP(H16,List1!$S$4:$T$36,2,FALSE),FALSE)) -> 1 | J16: =CEILING(I16*F16,0.001) -> 0 | M16: Poskytnuté náhrady za stravné | AK16: amortizace za km | AL16: 5.2 | AO16: 2 | AP16: 0 | AQ16: 0 | AR16: =0.3*AR13 -> 61.5 | AS16: =0.5*AS13 -> 158
B17: Záloha 2 | D17: vydaná dne | E17: =E16 -> 00:00:00 | F17: 0 | H17: CZK | I17: =IF(OR(E17="",H17="CZK",H17=""),1,VLOOKUP(E17,'Kurzy CNB'!$A$1:$AJ$315,VLOOKUP(H17,List1!$S$4:$T$36,2,FALSE),TRUE)) -> 1 | J17: =CEILING(I17*F17,0.001) -> 0 | M17: EUR | O17: =IF(N17<>"",IF(M17<>"",(IF(M17="CZK",1,VLOOKUP($N$10,'Kurzy CNB'!$A$1:$AJ$315,VLOOKUP(M17,List1!$S$4:$T$36,2,FALSE),TRUE)))*N17/VLOOKUP(M17,List1!$S$3:$U$36,3,FALSE),0),0) -> 0 | AA17: =SUM(O22:O23) -> 0 | AB17: =O17 -> 0 | AC17: =IF((AA17-AB17)<0,0,AA17-AB17) -> 0 | AK17: benzin 95 oktanů | AL17: 41.2 | AO17: 3 | AP17: 0 | AQ17: 0 | AR17: 0 | AS17: =0.25*AS13 -> 79
AB18: Celkem | AC18: =AC12+AC13+AC14+AC17 -> 0 | AK18: benzin 98 oktanů | AL18: 45.2
B19: VYÚČTOVÁNÍ | AK19: nafta | AL19: 44.1
D20: Popis | F20: měna | G20: částka | H20: měna | I20: částka | K20: Stravné | AK20: elektřina | AL20: 6
B21: Jízdní výdaje | D21: Vlastní vozidlo - VV | F21: CZK | G21: =H12 ->  | H21: CZK | I21: =G21 ->  | K21: měna | M21: částka | N21: měna | O21: částka | AK21: náhrada za km paliva | AL21: =ROUND(IF(AL13=0,(VLOOKUP(AL6,AK17:AL20,2,FALSE)),AL13)*AL11/100,4) -> 1.2 | AM21: =IF(AL13<>"","použita cena z dokladu","použita cena z vyhlášky") -> použita cena z dokladu
F22: CZK | H22: CZK | I22: =IF(G22<>"",IF(F22<>"",(IF(F22="CZK",1,VLOOKUP($N$10,'Kurzy CNB'!$A$1:$AJ$315,VLOOKUP(F22,List1!$S$4:$T$36,2,FALSE),TRUE)))*G22/VLOOKUP(F22,List1!$S$3:$U$36,3,FALSE),""),"") ->  | K22: CZK | M22: =CEILING(SUM(AA27:AA55),0.01) -> 0 | N22: CZK | O22: =M22 -> 0
F23: EUR | H23: CZK | I23: =IF(G23<>"",IF(F23<>"",(IF(F23="CZK",1,VLOOKUP($N$10,'Kurzy CNB'!$A$1:$AJ$315,VLOOKUP(F23,List1!$S$4:$T$36,2,FALSE),TRUE)))*G23/VLOOKUP(F23,List1!$S$3:$U$36,3,FALSE),""),"") ->  | K23: =O8 -> stát | M23: =IFERROR(CEILING(SUM(AB27:AB55),0.01),0) -> 0 | N23: CZK | O23: =IFERROR(IF(M23<>"",VLOOKUP($N$10,'Kurzy CNB'!$A$1:$AJ$315,VLOOKUP(K23,List1!$S$4:$T$36,2,FALSE),TRUE))*M23/VLOOKUP(K23,List1!$S$3:$U$36,3,FALSE),0) -> 0 | AP23: zahra
H24: CZK | I24: =IF(G24<>"",IF(F24<>"",(IF(F24="CZK",1,VLOOKUP($N$10,'Kurzy CNB'!$A$1:$AJ$315,VLOOKUP(F24,List1!$S$4:$T$36,2,FALSE),TRUE)))*G24/VLOOKUP(F24,List1!$S$3:$U$36,3,FALSE),""),"") -> 
B25: Výdaje za ubytování | F25: EUR | H25: CZK | I25: =IF(G25<>"",IF(F25<>"",(IF(F25="CZK",1,VLOOKUP($N$10,'Kurzy CNB'!$A$1:$AJ$315,VLOOKUP(F25,List1!$S$4:$T$36,2,FALSE),TRUE)))*G25/VLOOKUP(F25,List1!$S$3:$U$36,3,FALSE),""),"") ->  | K25: Bezplatně poskytnutá strava | W25: počet jídel | AA25: CZK | AB25: =O8 -> stát | AP25: 0 - 1 hod | AQ25: 1 až 12 hod. | AR25: 12 až 18 hod. | AS25: více než 18 hod.
H26: CZK | I26: =IF(G26<>"",IF(F26<>"",(IF(F26="CZK",1,VLOOKUP($N$10,'Kurzy CNB'!$A$1:$AJ$315,VLOOKUP(F26,List1!$S$4:$T$36,2,FALSE),TRUE)))*G26/VLOOKUP(F26,List1!$S$3:$U$36,3,FALSE),""),"") ->  | K26: Datum | M26: snídaně | N26: oběd | O26: večeře | P26: doba | Q26: začátek zahr | R26: konec zahr | S26: doba zahr | T26: doba CR | U26: přep zahr | V26: přep CR | X26: kod zahr | Y26: kod tuz | AA26: stravne CR | AB26: stravne zahr | AO26: počet jídel | AP26: 0 | AQ26: I | AR26: II | AS26: III
B27: Ostatní výdaje | F27: EUR | H27: CZK | I27: =IF(G27<>"",IF(F27<>"",(IF(F27="CZK",1,VLOOKUP($N$10,'Kurzy CNB'!$A$1:$AJ$315,VLOOKUP(F27,List1!$S$4:$T$36,2,FALSE),TRUE)))*G27/VLOOKUP(F27,List1!$S$3:$U$36,3,FALSE),""),"") ->  | K27: =IF(E7<>0,E7,"") -> 2023-01-03 | M27: Ano | N27: Ano | P27: =IF(K27<>"",IF(K28<>"",K27+1-S7,S10-S7),"") -> 0.7083333333 | Q27: =IF(OR($E$8>K27,$E$9<K27),"",IF(K27=$E$8,$S$8,K27)) -> 2023-01-03T07:00:00 | R27: =IF(OR($E$8>K27,$E$9<K27),"",IF(K27=$E$9,$S$9,K27+1)) -> 2023-01-04 | S27: =IF(Q27="","",R27-Q27) -> 0.7083333333 | T27: =IF(P27<>"",IF(S27<>"",P27-S27,P27),"") -> 0 | U27: =IF(T27<5/24,S27,IF(S27<=(5/24+0.0000001),"",S27)) -> 0.7083333333 | V27: =IF(T27>=5/24,IF(S27<=(5/24+0.0000001),T27+S27,T27),T27) -> 0 | W27: =IF($E$11="ne",0,IF(LEFT(M27,1)="A",1,0)+IF(LEFT(N27,1)="A",1,0)+IF(LEFT(O27,1)="A",1,0)) -> 0 | X27: =IF(U27<>"",(IF(U27<(1/24-0.0000001),1,(IF(U27<=12/24,2,IF(U27<=18/24,3,4))))),"") -> 3 | Y27: =IF(V27<>"",(IF(V27<5/24,1,(IF(V27<=12/24,2,IF(V27<=18/24,3,4))))),"") -> 1 | AA27: =IF(Y27<>"",IF(X27="",VLOOKUP(W27,$AO$12:$AS$17,Y27+1,FALSE),VLOOKUP(0,$AO$12:$AS$17,Y27+1)),"") -> 0 | AB27: =IF(X27="","",IF(Y27=1,VLOOKUP(W27,$AO$26:$AS$30,X27+1,FALSE),VLOOKUP(W27,$AO$26:$AS$30,3,FALSE))) ->  | AO27: 0 | AP27: 0 | AQ27: =AS27/3 ->  | AR27: =AS27*2/3 ->  | AS27: =N8 -> Vyberte
H28: CZK | I28: =IF(G28<>"",IF(F28<>"",(IF(F28="CZK",1,VLOOKUP($N$10,'Kurzy CNB'!$A$1:$AJ$315,VLOOKUP(F28,List1!$S$4:$T$36,2,FALSE),TRUE)))*G28/VLOOKUP(F28,List1!$S$3:$U$36,3,FALSE),""),"") ->  | K28: =IF(($E$7+List1!A2)<=$E$10,$E$7+List1!A2,"") -> 2023-01-04 | P28: =IF(K28<>"",IF(K29<>"",1,$S$10-K28),"") -> 0.9583333333 | Q28: =IF(OR($E$8>K28,$E$9<K28),"",IF(K28=$E$8,$S$8,K28)) -> 2023-01-04 | R28: =IF(OR($E$8>K28,$E$9<K28),"",IF(K28=$E$9,$S$9,K28+1)) -> 2023-01-04T23:00:00 | S28: =IF(Q28="","",R28-Q28) -> 0.9583333333 | T28: 0 | U28: =IF(T28<5/24,S28,IF(S28<=(5/24+0.0000001),"",S28)) -> 0.9583333333 | V28: =IF(T28>=5/24,IF(S28<=(5/24+0.0000001),T28+S28,T28),T28) -> 0 | W28: 0 | X28: =IF(U28<>"",(IF(U28<(1/24-0.0000001),1,(IF(U28<=12/24,2,IF(U28<=18/24,3,4))))),"") -> 4 | Y28: =IF(V28<>"",(IF(V28<5/24,1,(IF(V28<=12/24,2,IF(V28<=18/24,3,4))))),"") -> 1 | AA28: 0 | AB28: =IF(X28="","",IF(Y28=1,VLOOKUP(W28,$AO$26:$AS$30,X28+1,FALSE),VLOOKUP(W28,$AO$26:$AS$30,3,FALSE))) -> Vyberte | AO28: 1 | AP28: 0 | AQ28: =AQ27*0.3 ->  | AR28: =0.65*AR27 ->  | AS28: =0.75*AS27 -> 
B29: Celkem (včetně stravného) | H29: CZK | I29: =AC12+AC13+AC14+AC17 -> 0 | K29: =IF(($E$7+List1!A3)<=$E$10,$E$7+List1!A3,"") ->  | R29: =IF(OR($E$8>K29,$E$9<K29),"",IF(K29=$E$9,$S$9,K29+1)) ->  | U29: =IF(T29<5/24,S29,IF(S29<=(5/24+0.0000001),"",S29)) ->  | W29: 0 | AK29: Přehled EU norem používaných v TP | AO29: 2 | AP29: 0 | AQ29: 0 | AR29: =0.3*AR27 ->  | AS29: =0.5*AS27 -> 
B30: Záloha | H30: CZK | I30: =IF(E14="ne",0,CEILING(J16+J17,0.01)) -> 0 | K30: =IF(($E$7+List1!A4)<=$E$10,$E$7+List1!A4,"") ->  | W30: 0 | AK30: 80/1268/EHS | AL30: arit.průměr | AM30: 3 údaje v TP | AO30: 3 | AP30: 0 | AQ30: 0 | AR30: 0 | AS30: =0.25*AS27 -> 
B31: =IF(I31<0,"Přeplatek (zaměstnanec vrátí)", "Doplatek (zaměstnanci bude doplaceno)") -> Doplatek (zaměstnanci bude doplaceno) | H31: CZK | I31: =(I29-I30)/(IF(H31="CZK",1,VLOOKUP($N$10,'Kurzy CNB'!$A$1:$AJ$315,VLOOKUP(H31,List1!$S$4:$T$36,2,FALSE),TRUE))/VLOOKUP(H31,List1!$S$3:$U$36,3,FALSE)) -> 0 | K31: =IF(($E$7+List1!A5)<=$E$10,$E$7+List1!A5,"") ->  | W31: 0 | AK31: 93/116/ES | AL31: třetí údaj
K32: =IF(($E$7+List1!A6)<=$E$10,$E$7+List1!A6,"") ->  | W32: 0 | AK32: 1999/100/ES | AL32: třetí údaj
B33: Zdroj financování: | K33: =IF(($E$7+List1!A7)<=$E$10,$E$7+List1!A7,"") ->  | W33: 0 | AK33: 2004/3/ES | AL33: třetí údaj
B34: ="jízdné: "&Příkaz!D18&", ubytování: "&Příkaz!D26&", stravné: "&Příkaz!D28&", vedl. výdaje: "&Příkaz!D30 -> jízdné: , ubytování: , stravné: , vedl. výdaje: | K34: =IF(($E$7+List1!A8)<=$E$10,$E$7+List1!A8,"") ->  | W34: 0 | AK34: EU 692/2008 | AL34: třetí údaj
K35: =IF(($E$7+List1!A9)<=$E$10,$E$7+List1!A9,"") ->  | W35: 0 | AK35: EU 692/2008A,…F | AL35: třetí údaj
K36: =IF(($E$7+List1!A10)<=$E$10,$E$7+List1!A10,"") ->  | W36: 0 | AK36: EU/566/2011 | AL36: třetí údaj
K37: =IF(($E$7+List1!A11)<=$E$10,$E$7+List1!A11,"") ->  | W37: 0 | AK37: 2007/46/ES | AL37: třetí údaj
B38: Číslo bankovního účtu pro zasílání náhrad zaměstnanci: | K38: =IF(($E$7+List1!A12)<=$E$10,$E$7+List1!A12,"") ->  | W38: 0 | AK38: EHK 101,R101.00 | AL38: třetí údaj
K39: =IF(($E$7+List1!A13)<=$E$10,$E$7+List1!A13,"") ->  | W39: 0 | AK39: 459/2012/EU | AL39: třetí údaj
K40: =IF(($E$7+List1!A14)<=$E$10,$E$7+List1!A14,"") ->  | W40: 0 | AK40: 630/2012/EU | AL40: třetí údaj
K41: =IF(($E$7+List1!A15)<=$E$10,$E$7+List1!A15,"") ->  | W41: 0 | AK41: EU195/2013 | AL41: třetí údaj
B42: Prohlašuji, že jsem všechny údaje uvedl úplně, a že je zpráva ze zahraniční pracovní cesty přiložena. | K42: =IF(($E$7+List1!A16)<=$E$10,$E$7+List1!A16,"") ->  | W42: 0 | AK42: 715/2007/ES | AL42: třetí údaj
K43: =IF(($E$7+List1!A17)<=$E$10,$E$7+List1!A17,"") ->  | W43: 0 | AK43: EU136/2014 | AL43: třetí údaj
K44: =IF(($E$7+List1!A18)<=$E$10,$E$7+List1!A18,"") ->  | U44: =IF(T44<5/24,S44,IF(S44<=(5/24+0.0000001),"",S44)) ->  | W44: 0 | AK44: EU2016/646 | AL44: třetí údaj
K45: =IF(($E$7+List1!A19)<=$E$10,$E$7+List1!A19,"") ->  | U45: =IF(T45<5/24,S45,IF(S45<=(5/24+0.0000001),"",S45)) ->  | W45: 0 | AK45: EU2017/1347 | AL45: třetí údaj
K46: =IF(($E$7+List1!A20)<=$E$10,$E$7+List1!A20,"") ->  | U46: =IF(T46<5/24,S46,IF(S46<=(5/24+0.0000001),"",S46)) ->  | W46: 0 | AK46: EU2015/45 | AL46: třetí údaj
B47: Datum a podpis zaměstnance | K47: =IF(($E$7+List1!A21)<=$E$10,$E$7+List1!A21,"") ->  | W47: 0 | AK47: jiná norma | AL47: arit.průměr
K48: =IF(($E$7+List1!A22)<=$E$10,$E$7+List1!A22,"") ->  | W48: 0
K49: =IF(($E$7+List1!A23)<=$E$10,$E$7+List1!A23,"") ->  | W49: 0
K50: =IF(($E$7+List1!A24)<=$E$10,$E$7+List1!A24,"") ->  | W50: 0
B51: Podpis řešitele grantu nebo projektu | F51: Podpis vedoucího zahraničního oddělení | K51: =IF(($E$7+List1!A25)<=$E$10,$E$7+List1!A25,"") ->  | W51: 0
K52: =IF(($E$7+List1!A26)<=$E$10,$E$7+List1!A26,"") ->  | W52: 0
K53: =IF(($E$7+List1!A27)<=$E$10,$E$7+List1!A27,"") ->  | W53: 0
K54: =IF(($E$7+List1!A28)<=$E$10,$E$7+List1!A28,"") ->  | W54: 0
K55: =IF(($E$7+List1!A29)<=$E$10,$E$7+List1!A29,"") ->  | W55: 0
B56: Podpis přímého nadřízeného | F56: Podpis vedoucí ekonomického oddělení | K56: =IF(($E$7+List1!A30)<=$E$10,$E$7+List1!A30,"") ->  | P56: =IF(K56<>"",IF(K57<>"",1,$S$10-K56),"") ->  | Q56: =IF(OR($E$8>K56,$E$9<K56),"",IF(K56=$E$8,$S$8,K56)) ->  | R56: =IF(OR($E$8>K56,$E$9<K56),"",IF(K56=$E$9,$S$9,K56+1)) ->  | S56: =IF(Q56="","",R56-Q56) ->  | T56: =IF(P56<>"",IF(S56<>"",P56-S56,P56),"") ->  | U56: =IF(T56<5/24,S56,IF(S56<=(5/24+0.0000001),"",S56)) ->  | V56: =IF(T56>=5/24,IF(S56<=(5/24+0.0000001),T56+S56,T56),T56) ->  | W56: =IF($E$11="ne",0,IF(LEFT(M56,1)="A",1,0)+IF(LEFT(N56,1)="A",1,0)+IF(LEFT(O56,1)="A",1,0)) -> 0 | X56: =IF(U56<>"",(IF(U56<(1/24-0.0000001),1,(IF(U56<=12/24,2,IF(U56<=18/24,3,4))))),"") ->  | Y56: =IF(V56<>"",(IF(V56<5/24,1,(IF(V56<=12/24,2,IF(V56<=18/24,3,4))))),"") ->  | AA56: =IF(Y56<>"",IF(X56="",VLOOKUP(W56,$AO$12:$AS$17,Y56+1,FALSE),VLOOKUP(0,$AO$12:$AS$17,Y56+1)),"") ->  | AB56: =IF(X56="","",IF(Y56=1,VLOOKUP(W56,$AO$26:$AS$30,X56+1,FALSE),VLOOKUP(W56,$AO$26:$AS$30,3,FALSE))) -> 
K57: =IF(($E$7+List1!A31)<=$E$10,$E$7+List1!A31,"") ->  | W57: 0
K58: =IF(($E$7+List1!A32)<=$E$10,$E$7+List1!A32,"") ->  | W58: 0
B60: Podpis tajemníka (správce rozpočtu) | F60: Podpis pracovníka ekonomického oddělení, který kontroloval a upravil vyúčtování

Sheet Zpráva o cestě
K1: Příloha OD č. 1/2022
B2: ZPRÁVA O PRŮBĚHU A VÝSLEDCÍCH PRACOVNÍ CESTY | U2: =IFERROR("Vyúčtování pracovní cesty a zprávu o pracovní cestě je nutné odevzdat nejpozději do " &TEXT(List1!$AC$1,"dd.mm.rrrr")&".","") -> 
B4: Jméno a příjmení: | F4: =T(Příkaz!D5) -> 
B6: Pracoviště: | F6: =T(Příkaz!L5) -> 
B8: Datum a místo zahájení cesty: | F8: =T(Příkaz!F7) ->  | I8: =T(Příkaz!J7) -> 
B10: Místo konání: | F10: =T(Příkaz!D9) -> 
B12: Účel: | F12: =T(Příkaz!D11) -> 
B14: Datum a místo ukončení cesty: | F14: =T(Příkaz!F15) ->  | I14: =T(Příkaz!J15) -> 
B16: Počet dní: | F16: =List1!P2 -> 1
B18: Způsob dopravy: | H18: =Příkaz!G20 -> V | K18: =Příkaz!I20 -> Vlak
B21: Průběh cesty:
B32: Výsledek pracovní cesty (přínos pracovní cesty):
B51: V Praze dne | J51: Podpis zaměstnance

Sheet Kurzy CNB
A1: Datum | B1: 1 AUD | C1: 1 BGN | D1: 1 BRL | E1: 1 CAD | F1: 1 CHF | G1: 1 CNY | H1: 1 DKK | I1: 1 EUR | J1: 1 GBP | K1: 1 HKD | L1: 100 HUF | M1: 1000 IDR | N1: 1 ILS | O1: 100 INR | P1: 100 ISK | Q1: 100 JPY | R1: 100 KRW | S1: 1 MXN | T1: 1 MYR | U1: 1 NOK | V1: 1 NZD | W1: 100 PHP | X1: 1 PLN | Y1: 1 RON | Z1: 1 SEK | AA1: 1 SGD | AB1: 100 THB | AC1: 1 TRY | AD1: 1 USD | AE1: 1 XDR | AF1: 1 ZAR
A2: 2023-01-02 | B2: 15.4 | C2: 12.385 | D2: 4.237 | E2: 16.668 | F2: 24.496 | G2: 3.281 | H2: 3.25 | I2: 24.175 | J2: 27.272 | K2: 2.899 | L2: 6.028 | M2: 1.453 | N2: 6.447 | O2: 27.341 | P2: 15.936 | Q2: 17.317 | R2: 1.781 | S2: 1.16 | T2: 5.137 | U2: 2.299 | V2: 14.317 | W2: 40.541 | X2: 5.164 | Y2: 4.894 | Z2: 2.165 | AA2: 16.878 | AB2: 65.491 | AC2: 1.209 | AD2: 22.63 | AE2: 30.118 | AF2: 1.33
A3: 2023-01-03 | B3: 15.358 | C3: 12.335 | D3: 4.259 | E3: 16.738 | F3: 24.422 | G3: 3.311 | H3: 3.244 | I3: 24.125 | J3: 27.401 | K3: 2.928 | L3: 5.98 | M3: 1.467 | N3: 6.483 | O3: 27.6 | P3: 15.903 | Q3: 17.485 | R3: 1.792 | S3: 1.175 | T3: 5.192 | U3: 2.292 | V3: 14.251 | W3: 40.876 | X3: 5.152 | Y3: 4.893 | Z3: 2.165 | AA3: 17.006 | AB3: 66.548 | AC3: 1.221 | AD3: 22.878 | AE3: 30.447 | AF3: 1.339
A4: 2023-01-04 | B4: 15.55 | C4: 12.284 | D4: 4.161 | E4: 16.729 | F4: 24.409 | G4: 3.293 | H4: 3.23 | I4: 24.025 | J4: 27.276 | K4: 2.9 | L4: 6.069 | M4: 1.454 | N4: 6.426 | O4: 27.372 | P4: 15.837 | Q4: 17.316 | R4: 1.781 | S4: 1.175 | T4: 5.152 | U4: 2.237 | V4: 14.323 | W4: 40.501 | X4: 5.147 | Y4: 4.877 | Z4: 2.152 | AA4: 16.907 | AB4: 66.658 | AC4: 1.21 | AD4: 22.672 | AE4: 30.148 | AF4: 1.347
A5: 2023-01-05 | B5: 15.483 | C5: 12.28 | D5: 4.209 | E5: 16.795 | F5: 24.4 | G5: 3.3 | H5: 3.231 | I5: 24.03 | J5: 27.218 | K5: 2.904 | L5: 6.053 | M5: 1.453 | N5: 6.427 | O5: 27.481 | P5: 15.778 | Q5: 17.047 | R5: 1.786 | S5: 1.17 | T5: 5.168 | U5: 2.241 | V5: 14.275 | W5: 40.617 | X5: 5.146 | Y5: 4.88 | Z5: 2.148 | AA5: 16.914 | AB5: 66.846 | AC5: 1.208 | AD5: 22.676 | AE5: 30.267 | AF5: 1.326
A6: 2023-01-06 | B6: 15.43 | C6: 12.299 | D6: 4.294 | E6: 16.786 | F6: 24.387 | G6: 3.34 | H6: 3.235 | I6: 24.055 | J6: 27.189 | K6: 2.933 | L6: 6.057 | M6: 1.466 | N6: 6.44 | O6: 27.679 | P6: 15.733 | Q6: 17.026 | R6: 1.799 | S6: 1.187 | T6: 5.203 | U6: 2.226 | V6: 14.241 | W6: 41.205 | X6: 5.124 | Y6: 4.879 | Z6: 2.137 | AA6: 16.993 | AB6: 67.322 | AC6: 1.221 | AD6: 22.911 | AE6: 30.549 | AF6: 1.32

Sheet List1 (hidden)
H1: 2023-01-01 | I1: 2023-01-01 | P1: počet dní | AB1: =Příkaz!F15 -> 00:00:00 | AC1: =VLOOKUP(VLOOKUP(AB1,AB3:AD569,3,FALSE)+10,AA3:AB569,2,FALSE) -> 
A2: 1 | H2: 2023-12-31 | I2: 2024-06-30 | K2: Ano | L2: JE | M2: PF UK | N2: ZO PF UK | P2: =Příkaz!F15-Příkaz!F7+1 -> 1 | Q2: =VALUE(RIGHT(P2,1)) -> 1 | R2: =P2&" "&VLOOKUP(Q2,P6:Q15,2,FALSE) -> 1 den | V2: Země | W2: Měnový kód | X2: Měna | Y2: Základní sazby zahraničního stravného | AA2: poř | AB2: datum | AC2: body | AD2: č2 | AE2: den
A3: 2 | B3: V | C3: Vlak | K3: Ne | L3: NENÍ | M3: grant | N3: jinak | R3: CZK | S3: CZK | T3: 0 | U3: 1 | V3: Afghánistán | W3: EUR | X3: euro | Y3: 45 | AA3: 0 | AB3: 2023-01-01 | AC3: 0 | AE3: =WEEKDAY(AB3,2) -> 7
A4: 3 | B4: A | C4: Autobus | I4: CZK | M4: jiné | R4: EUR | S4: AUD | T4: 2 | U4: 1 | V4: Albánie | W4: EUR | X4: euro | Y4: 40 | AA4: =AA3+AC4 -> 1 | AB4: 2023-01-02 | AC4: 1 | AD4: =AA3+AC4 -> 1 | AE4: =WEEKDAY(AB4,2) -> 1
A5: 4 | B5: L | C5: Letadlo | I5: EUR | K5: Ne | R5: GBP | S5: BGN | T5: 3 | U5: 1 | V5: Alžírsko | W5: EUR | X5: euro | Y5: 50 | AA5: 2 | AB5: 2023-01-03 | AC5: 1 | AD5: =AA4+AC5 -> 2 | AE5: 2
A6: 5 | B6: SV | C6: Služební silniční vozidlo | I6: USD | K6: Ano, v hotovosti | N6: ZO PF UK | P6: 0 | Q6: dní | R6: PLN | S6: BRL | T6: 4 | U6: 1 | V6: Andorra | W6: EUR | X6: euro | Y6: 45 | AA6: 3 | AB6: 2023-01-04 | AC6: 1 | AD6: 3 | AE6: 3
A7: 6 | B7: SJ | C7: Spolujízda | I7: GBP | K7: Ano, na bank. účet | N7: vyjíždějící | P7: 1 | Q7: den | R7: USD | S7: CAD | T7: 5 | U7: 1 | V7: Angola | W7: USD | X7: americký dolar | Y7: 60 | AA7: 4 | AB7: 2023-01-05 | AC7: 1 | AD7: 4 | AE7: 4
A8: 7 | B8: VV | C8: Vlastní silniční vozidlo - náhrada za každý km jízdy | I8: AUD | P8: 2 | Q8: dny | S8: CHF | T8: 6 | U8: 1 | V8: Argentina | W8: USD | X8: americký dolar | Y8: 50 | AA8: 5 | AB8: 2023-01-06 | AC8: 1 | AD8: 5 | AE8: 5
A9: 8 | B9: V - VV | C9: Vlastní vozidlo s náhradou výdajů za vlak | I9: BRL | P9: 3 | Q9: dny | S9: CNY | T9: 7 | U9: 1 | V9: Arménie | W9: EUR | X9: euro | Y9: 40 | AA9: 5 | AB9: 2023-01-07 | AC9: 0 | AD9: 5 | AE9: 6
A10: 9 | B10: A - VV | C10: Vlastní vozidlo s náhradou výdajů za autobus | I10: BGN | P10: 4 | Q10: dny | S10: DKK | T10: 8 | U10: 1 | V10: Austrálie a Oceánie – ostrovní státy1) | W10: USD | X10: americký dolar | Y10: 65 | AA10: 5 | AB10: 2023-01-08 | AC10: 0 | AD10: 5 | AE10: 7
A11: 10 | B11: L - VV | C11: Vlastní vozidlo s náhradou výdajů za letadlo | I11: CNY | P11: 5 | Q11: dní | S11: EUR | T11: 9 | U11: 1 | V11: Ázerbájdžán | W11: EUR | X11: euro | Y11: 40 | AA11: 6 | AB11: 2023-01-09 | AC11: 1 | AD11: 6 | AE11: 1
A12: 11 | I12: DKK | P12: 6 | Q12: dní | S12: GBP | T12: 10 | U12: 1 | V12: Bahamy | W12: USD | X12: americký dolar | Y12: 60 | AA12: 7 | AB12: 2023-01-10 | AC12: 1 | AD12: 7 | AE12: 2
A13: 12 | B13: S | I13: PHP | P13: 7 | Q13: dní | S13: HKD | T13: 11 | U13: 1 | V13: Bahrajn | W13: EUR | X13: euro | Y13: 45 | AA13: 8 | AB13: 2023-01-11 | AC13: 1 | AD13: 8 | AE13: 3
A14: 13 | B14: O | I14: HKD | P14: 8 | Q14: dní | S14: HUF | T14: 12 | U14: 100 | V14: Bangladéš | W14: USD | X14: americký dolar | Y14: 50 | AA14: 9 | AB14: 2023-01-12 | AC14: 1 | AD14: 9 | AE14: 4
A15: 14 | B15: V | I15: HRK | P15: 9 | Q15: dní | S15: IDR | T15: 13 | U15: 1000 | V15: Belgie | W15: EUR | X15: euro | Y15: 50 | AA15: 10 | AB15: 2023-01-13 | AC15: 1 | AD15: 10 | AE15: 5
A16: 15 | B16: SO | I16: INR | S16: ILS | T16: 14 | U16: 1 | V16: Belize | W16: USD | X16: americký dolar | Y16: 50 | AA16: 10 | AB16: 2023-01-14 | AC16: 0 | AD16: 10 | AE16: 6
A17: 16 | B17: SV | I17: IDR | S17: INR | T17: 15 | U17: 100 | V17: Benin | W17: EUR | X17: euro | Y17: 45 | AA17: 10 | AB17: 2023-01-15 | AC17: 0 | AD17: 10 | AE17: 7
A18: 17 | B18: OV | I18: ISK | S18: ISK | T18: 16 | U18: 100 | V18: Bermudy | W18: USD | X18: americký dolar | Y18: 50 | AA18: 11 | AB18: 2023-01-16 | AC18: 1 | AD18: 11 | AE18: 1
A19: 18 | B19: SOV | I19: ILS | S19: JPY | T19: 17 | U19: 100 | V19: Bělorusko | W19: EUR | X19: euro | Y19: 45 | AA19: 12 | AB19: 2023-01-17 | AC19: 1 | AD19: 12 | AE19: 2
A20: 19 | I20: JPY | S20: KRW | T20: 18 | U20: 100 | V20: Bhútán | W20: USD | X20: americký dolar | Y20: 50 | AA20: 13 | AB20: 2023-01-18 | AC20: 1 | AD20: 13 | AE20: 3
A21: 20 | I21: ZAR | S21: MXN | T21: 19 | U21: 1 | V21: Bolívie | W21: USD | X21: americký dolar | Y21: 50 | AA21: 14 | AB21: 2023-01-19 | AC21: 1 | AD21: 14 | AE21: 4
A22: 21 | B22: 110 | C22: Z | D22: 1 | I22: CAD | S22: MYR | T22: 20 | U22: 1 | V22: Bosna a Hercegovina | W22: EUR | X22: euro | Y22: 40 | AA22: 15 | AB22: 2023-01-20 | AC22: 1 | AD22: 15 | AE22: 5
A23: 22 | B23: 1010 | C23: P | D23: 2 | I23: KRW | S23: NOK | T23: 21 | U23: 1 | V23: Botswana | W23: USD | X23: americký dolar | Y23: 55 | AA23: 15 | AB23: 2023-01-21 | AC23: 0 | AD23: 15 | AE23: 6
A24: 23 | B24: 1001 | C24: K | D24: 3 | I24: HUF | S24: NZD | T24: 22 | U24: 1 | V24: Brazílie | W24: USD | X24: americký dolar | Y24: 60 | AA24: 15 | AB24: 2023-01-22 | AC24: 0 | AD24: 15 | AE24: 7
A25: 24 | B25: 101 | C25: S | D25: 4 | I25: MYR | S25: PHP | T25: 23 | U25: 100 | V25: Brunej | W25: USD | X25: americký dolar | Y25: 40 | AA25: 16 | AB25: 2023-01-23 | AC25: 1 | AD25: 16 | AE25: 1
A26: 25 | B26: 0 | C26: 0 | D26: 5 | I26: MXN | S26: PLN | T26: 24 | U26: 1 | V26: Bulharsko | W26: EUR | X26: euro | Y26: 40 | AA26: 17 | AB26: 2023-01-24 | AC26: 1 | AD26: 17 | AE26: 2
A27: 26 | I27: XDR | S27: RON | T27: 25 | U27: 1 | V27: Burkina Faso | W27: EUR | X27: euro | Y27: 40 | AA27: 18 | AB27: 2023-01-25 | AC27: 1 | AD27: 18 | AE27: 3
A28: 27 | I28: NOK | S28: SEK | T28: 26 | U28: 1 | V28: Burundi | W28: USD | X28: americký dolar | Y28: 55 | AA28: 19 | AB28: 2023-01-26 | AC28: 1 | AD28: 19 | AE28: 4
A29: 28 | I29: NZD | S29: SGD | T29: 27 | U29: 1 | V29: Čad | W29: EUR | X29: euro | Y29: 50 | AA29: 20 | AB29: 2023-01-27 | AC29: 1 | AD29: 20 | AE29: 5
A30: 29 | I30: PLN | S30: THB | T30: 28 | U30: 100 | V30: Černá Hora | W30: EUR | X30: euro | Y30: 35 | AA30: 20 | AB30: 2023-01-28 | AC30: 0 | AD30: 20 | AE30: 6
A31: 30 | I31: RON | S31: TRY | T31: 29 | U31: 1 | V31: Čína | W31: EUR | X31: euro | Y31: 45 | AA31: 20 | AB31: 2023-01-29 | AC31: 0 | AD31: 20 | AE31: 7
A32: 31 | I32: RUB | S32: USD | T32: 30 | U32: 1 | V32: Dánsko | W32: EUR | X32: euro | Y32: 60 | AA32: 21 | AB32: 2023-01-30 | AC32: 1 | AD32: 21 | AE32: 1
A33: 32 | I33: SGD | S33: XDR | T33: 31 | U33: 1 | V33: Džibutsko | W33: USD | X33: americký dolar | Y33: 65 | AA33: 22 | AB33: 2023-01-31 | AC33: 1 | AD33: 22 | AE33: 2
A34: 33 | I34: SEK | S34: ZAR | T34: 32 | U34: 1 | V34: Egypt | W34: EUR | X34: euro | Y34: 45 | AA34: 23 | AB34: 2023-02-01 | AC34: 1 | AD34: 23 | AE34: 3
A35: 34 | I35: CHF | V35: Ekvádor | W35: USD | X35: americký dolar | Y35: 50 | AA35: 24 | AB35: 2023-02-02 | AC35: 1 | AD35: 24 | AE35: 4
A36: 35 | I36: THB | V36: Eritrea | W36: USD | X36: americký dolar | Y36: 50 | AA36: 25 | AB36: 2023-02-03 | AC36: 1 | AD36: 25 | AE36: 5
A37: 36 | I37: TRY | T37: =RIGHT(S37,3) ->  | V37: Estonsko | W37: EUR | X37: euro | Y37: 40 | AA37: 25 | AB37: 2023-02-04 | AC37: 0 | AD37: 25 | AE37: 6
A38: 37 | V38: Etiopie | W38: EUR | X38: euro | Y38: 50 | AA38: 25 | AB38: 2023-02-05 | AC38: 0 | AD38: 25 | AE38: 7
A39: 38 | V39: Filipíny | W39: EUR | X39: euro | Y39: 40 | AA39: 26 | AB39: 2023-02-06 | AC39: 1 | AD39: 26 | AE39: 1
A40: 39 | V40: Finsko | W40: EUR | X40: euro | Y40: 55 | AA40: 27 | AB40: 2023-02-07 | AC40: 1 | AD40: 27 | AE40: 2
A41: 40 | V41: Francie | W41: EUR | X41: euro | Y41: 50 | AA41: 28 | AB41: 2023-02-08 | AC41: 1 | AD41: 28 | AE41: 3
A42: 41 | V42: Francouzská Guyana | W42: EUR | X42: euro | Y42: 45 | AA42: 29 | AB42: 2023-02-09 | AC42: 1 | AD42: 29 | AE42: 4
A43: 42 | V43: Gabon | W43: EUR | X43: euro | Y43: 50 | AA43: 30 | AB43: 2023-02-10 | AC43: 1 | AD43: 30 | AE43: 5
A44: 43 | V44: Gambie | W44: EUR | X44: euro | Y44: 45 | AA44: 30 | AB44: 2023-02-11 | AC44: 0 | AD44: 30 | AE44: 6
A45: 44 | V45: Ghana | W45: EUR | X45: euro | Y45: 50 | AA45: 30 | AB45: 2023-02-12 | AC45: 0 | AD45: 30 | AE45: 7
A46: 45 | V46: Gibraltar | W46: EUR | X46: euro | Y46: 40 | AA46: 31 | AB46: 2023-02-13 | AC46: 1 | AD46: 31 | AE46: 1
A47: 46 | V47: Gruzie | W47: EUR | X47: euro | Y47: 40 | AA47: 32 | AB47: 2023-02-14 | AC47: 1 | AD47: 32 | AE47: 2
A48: 47 | V48: Guatemala | W48: USD | X48: americký dolar | Y48: 45 | AA48: 33 | AB48: 2023-02-15 | AC48: 1 | AD48: 33 | AE48: 3
A49: 48 | V49: Guinea | W49: EUR | X49: euro | Y49: 50 | AA49: 34 | AB49: 2023-02-16 | AC49: 1 | AD49: 34 | AE49: 4
A50: 49 | V50: Guinea-Bissau | W50: EUR | X50: euro | Y50: 45 | AA50: 35 | AB50: 2023-02-17 | AC50: 1 | AD50: 35 | AE50: 5
A51: 50 | V51: Guyana | W51: USD | X51: americký dolar | Y51: 50 | AA51: 35 | AB51: 2023-02-18 | AC51: 0 | AD51: 35 | AE51: 6
A52: 51 | V52: Honduras | W52: USD | X52: americký dolar | Y52: 45 | AA52: 35 | AB52: 2023-02-19 | AC52: 0 | AD52: 35 | AE52: 7
A53: 52 | V53: Hongkong | W53: EUR | X53: euro | Y53: 45 | AA53: 36 | AB53: 2023-02-20 | AC53: 1 | AD53: 36 | AE53: 1
A54: 53 | V54: Chile | W54: USD | X54: americký dolar | Y54: 55 | AA54: 37 | AB54: 2023-02-21 | AC54: 1 | AD54: 37 | AE54: 2
A55: 54 | V55: Chorvatsko | W55: EUR | X55: euro | Y55: 40 | AA55: 38 | AB55: 2023-02-22 | AC55: 1 | AD55: 38 | AE55: 3
A56: 55 | V56: Indie | W56: EUR | X56: euro | Y56: 45 | AA56: 39 | AB56: 2023-02-23 | AC56: 1 | AD56: 39 | AE56: 4
A57: 56 | V57: Indonésie | W57: EUR | X57: euro | Y57: 40 | AA57: 40 | AB57: 2023-02-24 | AC57: 1 | AD57: 40 | AE57: 5
A58: 57 | V58: Irák | W58: EUR | X58: euro | Y58: 45 | AA58: 40 | AB58: 2023-02-25 | AC58: 0 | AD58: 40 | AE58: 6
A59: 58 | V59: Írán | W59: EUR | X59: euro | Y59: 40 | AA59: 40 | AB59: 2023-02-26 | AC59: 0 | AD59: 40 | AE59: 7
A60: 59 | V60: Irsko | W60: EUR | X60: euro | Y60: 50 | AA60: 41 | AB60: 2023-02-27 | AC60: 1 | AD60: 41 | AE60: 1
A61: 60 | V61: Island | W61: EUR | X61: euro | Y61: 60 | AA61: 42 | AB61: 2023-02-28 | AC61: 1 | AD61: 42 | AE61: 2
A62: 61 | V62: Itálie, Vatikán a San Marino | W62: EUR | X62: euro | Y62: 50 | AA62: 43 | AB62: 2023-03-01 | AC62: 1 | AD62: 43 | AE62: 3
V63: Izrael | W63: USD | X63: americký dolar | Y63: 60 | AA63: 44 | AB63: 2023-03-02 | AC63: 1 | AD63: 44 | AE63: 4
V64: Japonsko | W64: USD | X64: americký dolar | Y64: 65 | AA64: 45 | AB64: 2023-03-03 | AC64: 1 | AD64: 45 | AE64: 5
V65: Jemen | W65: EUR | X65: euro | Y65: 35 | AA65: 45 | AB65: 2023-03-04 | AC65: 0 | AD65: 45 | AE65: 6
V66: Jihoafrická republika | W66: EUR | X66: euro | Y66: 40 | AA66: 45 | AB66: 2023-03-05 | AC66: 0 | AD66: 45 | AE66: 7
V67: Jižní Súdán | W67: USD | X67: americký dolar | Y67: 55 | AA67: 46 | AB67: 2023-03-06 | AC67: 1 | AD67: 46 | AE67: 1
V68: Jordánsko | W68: EUR | X68: euro | Y68: 50 | AA68: =AA67+AC68 -> 47 | AB68: 2023-03-07 | AC68: 1 | AD68: 47 | AE68: =WEEKDAY(AB68,2) -> 2
T69: =RIGHT(S69,3) ->  | V69: Kambodža | W69: USD | X69: americký dolar | Y69: 45 | AA69: 48 | AB69: 2023-03-08 | AC69: 1 | AD69: =AA68+AC69 -> 48 | AE69: 3
V70: Kamerun | W70: EUR | X70: euro | Y70: 50 | AA70: 49 | AB70: 2023-03-09 | AC70: 1 | AD70: 49 | AE70: 4
V71: Kanada | W71: USD | X71: americký dolar | Y71: 50 | AA71: 50 | AB71: 2023-03-10 | AC71: 1 | AD71: 50 | AE71: 5
V72: Kapverdy | W72: EUR | X72: euro | Y72: 40 | AA72: 50 | AB72: 2023-03-11 | AC72: 0 | AD72: 50 | AE72: 6
V73: Karibik – ostrovní státy2) | W73: USD | X73: americký dolar | Y73: 60 | AA73: 50 | AB73: 2023-03-12 | AC73: 0 | AD73: 50 | AE73: 7
V74: Katar | W74: USD | X74: americký dolar | Y74: 50 | AA74: 51 | AB74: 2023-03-13 | AC74: 1 | AD74: 51 | AE74: 1
V75: Kazachstán | W75: EUR | X75: euro | Y75: 45 | AA75: 52 | AB75: 2023-03-14 | AC75: 1 | AD75: 52 | AE75: 2
V76: Keňa | W76: EUR | X76: euro | Y76: 45 | AA76: 53 | AB76: 2023-03-15 | AC76: 1 | AD76: 53 | AE76: 3
V77: Kolumbie | W77: USD | X77: americký dolar | Y77: 45 | AA77: 54 | AB77: 2023-03-16 | AC77: 1 | AD77: 54 | AE77: 4
V78: Komory | W78: USD | X78: americký dolar | Y78: 55 | AA78: 55 | AB78: 2023-03-17 | AC78: 1 | AD78: 55 | AE78: 5
V79: Konžská republika (Brazzaville) | W79: USD | X79: americký dolar | Y79: 60 | AA79: 55 | AB79: 2023-03-18 | AC79: 0 | AD79: 55 | AE79: 6
V80: Konžská demokratická republika (Kinshasa) | W80: USD | X80: americký dolar | Y80: 65 | AA80: 55 | AB80: 2023-03-19 | AC80: 0 | AD80: 55 | AE80: 7
V81: Korejská lidově demokratická republika | W81: EUR | X81: euro | Y81: 45 | AA81: 56 | AB81: 2023-03-20 | AC81: 1 | AD81: 56 | AE81: 1
V82: Korejská republika | W82: EUR | X82: euro | Y82: 55 | AA82: 57 | AB82: 2023-03-21 | AC82: 1 | AD82: 57 | AE82: 2
V83: Kosovo | W83: EUR | X83: euro | Y83: 45 | AA83: 58 | AB83: 2023-03-22 | AC83: 1 | AD83: 58 | AE83: 3
V84: Kostarika | W84: USD | X84: americký dolar | Y84: 50 | AA84: 59 | AB84: 2023-03-23 | AC84: 1 | AD84: 59 | AE84: 4
V85: Kuba | W85: EUR | X85: euro | Y85: 60 | AA85: 60 | AB85: 2023-03-24 | AC85: 1 | AD85: 60 | AE85: 5
V86: Kuvajt | W86: EUR | X86: euro | Y86: 40 | AA86: 60 | AB86: 2023-03-25 | AC86: 0 | AD86: 60 | AE86: 6
V87: Kypr | W87: EUR | X87: euro | Y87: 40 | AA87: 60 | AB87: 2023-03-26 | AC87: 0 | AD87: 60 | AE87: 7
V88: Kyrgyzstán | W88: EUR | X88: euro | Y88: 40 | AA88: 61 | AB88: 2023-03-27 | AC88: 1 | AD88: 61 | AE88: 1
V89: Laos | W89: USD | X89: americký dolar | Y89: 45 | AA89: 62 | AB89: 2023-03-28 | AC89: 1 | AD89: 62 | AE89: 2
V90: Lesotho | W90: USD | X90: americký dolar | Y90: 50 | AA90: 63 | AB90: 2023-03-29 | AC90: 1 | AD90: 63 | AE90: 3
V91: Libanon | W91: USD | X91: americký dolar | Y91: 55 | AA91: 64 | AB91: 2023-03-30 | AC91: 1 | AD91: 64 | AE91: 4
V92: Libérie | W92: EUR | X92: euro | Y92: 45 | AA92: 65 | AB92: 2023-03-31 | AC92: 1 | AD92: 65 | AE92: 5
V93: Libye | W93: EUR | X93: euro | Y93: 45 | AA93: 65 | AB93: 2023-04-01 | AC93: 0 | AD93: 65 | AE93: 6
V94: Lichtenštejnsko | W94: CHF | X94: švýcarský frank | Y94: 65 | AA94: 65 | AB94: 2023-04-02 | AC94: 0 | AD94: 65 | AE94: 7
V95: Litva | W95: EUR | X95: euro | Y95: 40 | AA95: 66 | AB95: 2023-04-03 | AC95: 1 | AD95: 66 | AE95: 1
V96: Lotyšsko | W96: EUR | X96: euro | Y96: 40 | AA96: 67 | AB96: 2023-04-04 | AC96: 1 | AD96: 67 | AE96: 2
V97: Lucembursko | W97: EUR | X97: euro | Y97: 50 | AA97: 68 | AB97: 2023-04-05 | AC97: 1 | AD97: 68 | AE97: 3
V98: Macao | W98: EUR | X98: euro | Y98: 45 | AA98: 69 | AB98: 2023-04-06 | AC98: 1 | AD98: 69 | AE98: 4
V99: Madagaskar | W99: EUR | X99: euro | Y99: 40 | AA99: 69 | AB99: 2023-04-07 | AC99: 0 | AD99: 69 | AE99: 5
V100: Maďarsko | W100: EUR | X100: euro | Y100: 40 | AA100: 69 | AB100: 2023-04-08 | AC100: 0 | AD100: 69 | AE100: 6
V101: Malajsie | W101: USD | X101: americký dolar | Y101: 45 | AA101: 69 | AB101: 2023-04-09 | AC101: 0 | AD101: 69 | AE101: 7
V102: Malawi | W102: USD | X102: americký dolar | Y102: 45 | AA102: 69 | AB102: 2023-04-10 | AC102: 0 | AD102: 69 | AE102: 1
V103: Maledivy | W103: USD | X103: americký dolar | Y103: 55 | AA103: 70 | AB103: 2023-04-11 | AC103: 1 | AD103: 70 | AE103: 2
V104: Mali | W104: EUR | X104: euro | Y104: 50 | AA104: 71 | AB104: 2023-04-12 | AC104: 1 | AD104: 71 | AE104: 3
V105: Malta | W105: EUR | X105: euro | Y105: 50 | AA105: 72 | AB105: 2023-04-13 | AC105: 1 | AD105: 72 | AE105: 4
V106: Maroko | W106: EUR | X106: euro | Y106: 45 | AA106: 73 | AB106: 2023-04-14 | AC106: 1 | AD106: 73 | AE106: 5
V107: Mauretánie | W107: EUR | X107: euro | Y107: 40 | AA107: 73 | AB107: 2023-04-15 | AC107: 0 | AD107: 73 | AE107: 6
V108: Mauricius | W108: USD | X108: americký dolar | Y108: 55 | AA108: 73 | AB108: 2023-04-16 | AC108: 0 | AD108: 73 | AE108: 7
V109: Mexiko | W109: USD | X109: americký dolar | Y109: 50 | AA109: 74 | AB109: 2023-04-17 | AC109: 1 | AD109: 74 | AE109: 1
V110: Moldavsko | W110: EUR | X110: euro | Y110: 45 | AA110: 75 | AB110: 2023-04-18 | AC110: 1 | AD110: 75 | AE110: 2
V111: Monako | W111: EUR | X111: euro | Y111: 45 | AA111: 76 | AB111: 2023-04-19 | AC111: 1 | AD111: 76 | AE111: 3
V112: Mongolsko | W112: EUR | X112: euro | Y112: 40 | AA112: 77 | AB112: 2023-04-20 | AC112: 1 | AD112: 77 | AE112: 4
V113: Mosambik | W113: USD | X113: americký dolar | Y113: 50 | AA113: 78 | AB113: 2023-04-21 | AC113: 1 | AD113: 78 | AE113: 5
V114: Myanmar (Barma) | W114: USD | X114: americký dolar | Y114: 55 | AA114: 78 | AB114: 2023-04-22 | AC114: 0 | AD114: 78 | AE114: 6
V115: Namibie | W115: USD | X115: americký dolar | Y115: 50 | AA115: 78 | AB115: 2023-04-23 | AC115: 0 | AD115: 78 | AE115: 7
V116: Německo | W116: EUR | X116: euro | Y116: 45 | AA116: 79 | AB116: 2023-04-24 | AC116: 1 | AD116: 79 | AE116: 1
V117: Nepál | W117: USD | X117: americký dolar | Y117: 50 | AA117: 80 | AB117: 2023-04-25 | AC117: 1 | AD117: 80 | AE117: 2
V118: Niger | W118: EUR | X118: euro | Y118: 50 | AA118: 81 | AB118: 2023-04-26 | AC118: 1 | AD118: 81 | AE118: 3
V119: Nigérie | W119: EUR | X119: euro | Y119: 50 | AA119: 82 | AB119: 2023-04-27 | AC119: 1 | AD119: 82 | AE119: 4
V120: Nikaragua | W120: USD | X120: americký dolar | Y120: 45 | AA120: 83 | AB120: 2023-04-28 | AC120: 1 | AD120: 83 | AE120: 5
V121: Nizozemsko | W121: EUR | X121: euro | Y121: 50 | AA121: 83 | AB121: 2023-04-29 | AC121: 0 | AD121: 83 | AE121: 6
V122: Norsko | W122: EUR | X122: euro | Y122: 60 | AA122: 83 | AB122: 2023-04-30 | AC122: 0 | AD122: 83 | AE122: 7
V123: Nový Zéland | W123: USD | X123: americký dolar | Y123: 65 | AA123: 83 | AB123: 2023-05-01 | AC123: 0 | AD123: 83 | AE123: 1
V124: Omán | W124: EUR | X124: euro | Y124: 50 | AA124: 84 | AB124: 2023-05-02 | AC124: 1 | AD124: 84 | AE124: 2
V125: Pákistán | W125: EUR | X125: euro | Y125: 40 | AA125: 85 | AB125: 2023-05-03 | AC125: 1 | AD125: 85 | AE125: 3
V126: Panama | W126: USD | X126: americký dolar | Y126: 45 | AA126: 86 | AB126: 2023-05-04 | AC126: 1 | AD126: 86 | AE126: 4
V127: Paraguay | W127: USD | X127: americký dolar | Y127: 50 | AA127: 87 | AB127: 2023-05-05 | AC127: 1 | AD127: 87 | AE127: 5
V128: Peru | W128: USD | X128: americký dolar | Y128: 50 | AA128: 87 | AB128: 2023-05-06 | AC128: 0 | AD128: 87 | AE128: 6
V129: Pobřeží Slonoviny | W129: EUR | X129: euro | Y129: 40 | AA129: 87 | AB129: 2023-05-07 | AC129: 0 | AD129: 87 | AE129: 7
V130: Polsko | W130: EUR | X130: euro | Y130: 45 | AA130: 87 | AB130: 2023-05-08 | AC130: 0 | AD130: 87 | AE130: 1
V131: Portugalsko a Azory | W131: EUR | X131: euro | Y131: 40 | AA131: 88 | AB131: 2023-05-09 | AC131: 1 | AD131: 88 | AE131: 2
V132: Rakousko | W132: EUR | X132: euro | Y132: 45 | AA132: =AA131+AC132 -> 89 | AB132: 2023-05-10 | AC132: 1 | AD132: 89 | AE132: =WEEKDAY(AB132,2) -> 3
T133: =RIGHT(S133,3) ->  | V133: Rovníková Guinea | W133: EUR | X133: euro | Y133: 50 | AA133: 90 | AB133: 2023-05-11 | AC133: 1 | AD133: =AA132+AC133 -> 90 | AE133: 4
V134: Rumunsko | W134: EUR | X134: euro | Y134: 40 | AA134: 91 | AB134: 2023-05-12 | AC134: 1 | AD134: 91 | AE134: 5
V135: Rusko | W135: EUR | X135: euro | Y135: 45 | AA135: 91 | AB135: 2023-05-13 | AC135: 0 | AD135: 91 | AE135: 6
V136: Rwanda | W136: USD | X136: americký dolar | Y136: 55 | AA136: 91 | AB136: 2023-05-14 | AC136: 0 | AD136: 91 | AE136: 7
V137: Řecko | W137: EUR | X137: euro | Y137: 40 | AA137: 92 | AB137: 2023-05-15 | AC137: 1 | AD137: 92 | AE137: 1
V138: Salvador | W138: USD | X138: americký dolar | Y138: 45 | AA138: 93 | AB138: 2023-05-16 | AC138: 1 | AD138: 93 | AE138: 2
V139: Saúdská Arábie | W139: EUR | X139: euro | Y139: 50 | AA139: 94 | AB139: 2023-05-17 | AC139: 1 | AD139: 94 | AE139: 3
V140: Senegal | W140: EUR | X140: euro | Y140: 55 | AA140: 95 | AB140: 2023-05-18 | AC140: 1 | AD140: 95 | AE140: 4
V141: Severní Makedonie | W141: EUR | X141: euro | Y141: 35 | AA141: 96 | AB141: 2023-05-19 | AC141: 1 | AD141: 96 | AE141: 5
V142: Seychely | W142: EUR | X142: euro | Y142: 55 | AA142: 96 | AB142: 2023-05-20 | AC142: 0 | AD142: 96 | AE142: 6
V143: Sierra Leone | W143: EUR | X143: euro | Y143: 40 | AA143: 96 | AB143: 2023-05-21 | AC143: 0 | AD143: 96 | AE143: 7
V144: Singapur | W144: USD | X144: americký dolar | Y144: 60 | AA144: 97 | AB144: 2023-05-22 | AC144: 1 | AD144: 97 | AE144: 1
V145: Spojené arabské emiráty | W145: USD | X145: americký dolar | Y145: 55 | AA145: 98 | AB145: 2023-05-23 | AC145: 1 | AD145: 98 | AE145: 2
V146: Slovensko | W146: EUR | X146: euro | Y146: 35 | AA146: 99 | AB146: 2023-05-24 | AC146: 1 | AD146: 99 | AE146: 3
V147: Slovinsko | W147: EUR | X147: euro | Y147: 40 | AA147: 100 | AB147: 2023-05-25 | AC147: 1 | AD147: 100 | AE147: 4
V148: Somálsko | W148: USD | X148: americký dolar | Y148: 55 | AA148: 101 | AB148: 2023-05-26 | AC148: 1 | AD148: 101 | AE148: 5
V149: Spojené státy americké | W149: USD | X149: americký dolar | Y149: 60 | AA149: 101 | AB149: 2023-05-27 | AC149: 0 | AD149: 101 | AE149: 6
V150: Srbsko | W150: EUR | X150: euro | Y150: 35 | AA150: 101 | AB150: 2023-05-28 | AC150: 0 | AD150: 101 | AE150: 7
V151: Srí Lanka | W151: USD | X151: americký dolar | Y151: 50 | AA151: 102 | AB151: 2023-05-29 | AC151: 1 | AD151: 102 | AE151: 1
V152: Středoafrická republika | W152: USD | X152: americký dolar | Y152: 50 | AA152: 103 | AB152: 2023-05-30 | AC152: 1 | AD152: 103 | AE152: 2
V153: Súdán | W153: USD | X153: americký dolar | Y153: 55 | AA153: 104 | AB153: 2023-05-31 | AC153: 1 | AD153: 104 | AE153: 3
V154: Surinam | W154: USD | X154: americký dolar | Y154: 50 | AA154: 105 | AB154: 2023-06-01 | AC154: 1 | AD154: 105 | AE154: 4
V155: Svatý Tomáš a Princův ostrov | W155: EUR | X155: euro | Y155: 40 | AA155: 106 | AB155: 2023-06-02 | AC155: 1 | AD155: 106 | AE155: 5
V156: Svazijsko | W156: USD | X156: americký dolar | Y156: 55 | AA156: 106 | AB156: 2023-06-03 | AC156: 0 | AD156: 106 | AE156: 6
V157: Sýrie | W157: EUR | X157: euro | Y157: 50 | AA157: 106 | AB157: 2023-06-04 | AC157: 0 | AD157: 106 | AE157: 7
V158: Španělsko | W158: EUR | X158: euro | Y158: 45 | AA158: 107 | AB158: 2023-06-05 | AC158: 1 | AD158: 107 | AE158: 1
V159: Švédsko | W159: EUR | X159: euro | Y159: 60 | AA159: 108 | AB159: 2023-06-06 | AC159: 1 | AD159: 108 | AE159: 2
V160: Švýcarsko | W160: CHF | X160: švýcarský frank | Y160: 75 | AA160: 109 | AB160: 2023-06-07 | AC160: 1 | AD160: 109 | AE160: 3
V161: Tádžikistán | W161: EUR | X161: euro | Y161: 40 | AA161: 110 | AB161: 2023-06-08 | AC161: 1 | AD161: 110 | AE161: 4
V162: Tanzanie | W162: USD | X162: americký dolar | Y162: 55 | AA162: 111 | AB162: 2023-06-09 | AC162: 1 | AD162: 111 | AE162: 5
V163: Thajsko | W163: EUR | X163: euro | Y163: 40 | AA163: 111 | AB163: 2023-06-10 | AC163: 0 | AD163: 111 | AE163: 6
V164: Tchaj-wan | W164: EUR | X164: euro | Y164: 45 | AA164: 111 | AB164: 2023-06-11 | AC164: 0 | AD164: 111 | AE164: 7
V165: Togo | W165: EUR | X165: euro | Y165: 40 | AA165: 112 | AB165: 2023-06-12 | AC165: 1 | AD165: 112 | AE165: 1
V166: Tunisko | W166: EUR | X166: euro | Y166: 50 | AA166: 113 | AB166: 2023-06-13 | AC166: 1 | AD166: 113 | AE166: 2
V167: Turecko | W167: EUR | X167: euro | Y167: 40 | AA167: 114 | AB167: 2023-06-14 | AC167: 1 | AD167: 114 | AE167: 3
V168: Turkmenistán | W168: EUR | X168: euro | Y168: 45 | AA168: 115 | AB168: 2023-06-15 | AC168: 1 | AD168: 115 | AE168: 4
V169: Uganda | W169: USD | X169: americký dolar | Y169: 55 | AA169: 116 | AB169: 2023-06-16 | AC169: 1 | AD169: 116 | AE169: 5
V170: Ukrajina | W170: EUR | X170: euro | Y170: 45 | AA170: 116 | AB170: 2023-06-17 | AC170: 0 | AD170: 116 | AE170: 6
V171: Uruguay | W171: USD | X171: americký dolar | Y171: 55 | AA171: 116 | AB171: 2023-06-18 | AC171: 0 | AD171: 116 | AE171: 7
V172: Uzbekistán | W172: EUR | X172: euro | Y172: 40 | AA172: 117 | AB172: 2023-06-19 | AC172: 1 | AD172: 117 | AE172: 1
V173: Velká Británie | W173: GBP | X173: anglická libra | Y173: 45 | AA173: 118 | AB173: 2023-06-20 | AC173: 1 | AD173: 118 | AE173: 2
V174: Venezuela | W174: USD | X174: americký dolar | Y174: 65 | AA174: 119 | AB174: 2023-06-21 | AC174: 1 | AD174: 119 | AE174: 3
V175: Vietnam | W175: EUR | X175: euro | Y175: 40 | AA175: 120 | AB175: 2023-06-22 | AC175: 1 | AD175: 120 | AE175: 4
V176: Zambie | W176: USD | X176: americký dolar | Y176: 55 | AA176: 121 | AB176: 2023-06-23 | AC176: 1 | AD176: 121 | AE176: 5
V177: Zimbabwe | W177: USD | X177: americký dolar | Y177: 50 | AA177: 121 | AB177: 2023-06-24 | AC177: 0 | AD177: 121 | AE177: 6
V178: Ostatní země neuvedené v příloze | W178: EUR | X178: euro | Y178: 35 | AA178: 121 | AB178: 2023-06-25 | AC178: 0 | AD178: 121 | AE178: 7
AA179: 122 | AB179: 2023-06-26 | AC179: 1 | AD179: 122 | AE179: 1
AA180: 123 | AB180: 2023-06-27 | AC180: 1 | AD180: 123 | AE180: 2
AA181: 124 | AB181: 2023-06-28 | AC181: 1 | AD181: 124 | AE181: 3
AA182: 125 | AB182: 2023-06-29 | AC182: 1 | AD182: 125 | AE182: 4
AA183: 126 | AB183: 2023-06-30 | AC183: 1 | AD183: 126 | AE183: 5
AA184: 126 | AB184: 2023-07-01 | AC184: 0 | AD184: 126 | AE184: 6
AA185: 126 | AB185: 2023-07-02 | AC185: 0 | AD185: 126 | AE185: 7
AA186: 127 | AB186: 2023-07-03 | AC186: 1 | AD186: 127 | AE186: 1
AA187: 128 | AB187: 2023-07-04 | AC187: 1 | AD187: 128 | AE187: 2
AA188: 128 | AB188: 2023-07-05 | AC188: 0 | AD188: 128 | AE188: 3
AA189: 128 | AB189: 2023-07-06 | AC189: 0 | AD189: 128 | AE189: 4
AA190: 129 | AB190: 2023-07-07 | AC190: 1 | AD190: 129 | AE190: 5
AA191: 129 | AB191: 2023-07-08 | AC191: 0 | AD191: 129 | AE191: 6
AA192: 129 | AB192: 2023-07-09 | AC192: 0 | AD192: 129 | AE192: 7
AA193: 130 | AB193: 2023-07-10 | AC193: 1 | AD193: 130 | AE193: 1
AA194: 131 | AB194: 2023-07-11 | AC194: 1 | AD194: 131 | AE194: 2
AA195: 132 | AB195: 2023-07-12 | AC195: 1 | AD195: 132 | AE195: 3
AA196: =AA195+AC196 -> 133 | AB196: 2023-07-13 | AC196: 1 | AD196: 133 | AE196: =WEEKDAY(AB196,2) -> 4
AA197: 134 | AB197: 2023-07-14 | AC197: 1 | AD197: =AA196+AC197 -> 134 | AE197: 5
AA198: 134 | AB198: 2023-07-15 | AC198: 0 | AD198: 134 | AE198: 6
AA199: 134 | AB199: 2023-07-16 | AC199: 0 | AD199: 134 | AE199: 7
AA200: 135 | AB200: 2023-07-17 | AC200: 1 | AD200: 135 | AE200: 1
... 369 more rows
